bitfinex/quotes_ETHUSD_20251124
["timestamp","ask_amount","ask_price","bid_price","bid_amount"]
[1763992982479,0.4565,2809.2,2808.6,0.001]
[1763992982649,0.6695,2808.7,2808.6,0.001]
[1763992982836,0.4565,2809.2,2808.6,0.001]
[1763992989662,0.4565,2809.2,2807.7,0.405504]
[1763992989663,7.3187918,2808.7,2807.1,0.4659]
[1763992989985,7.3187918,2808.7,2805.9,0.1162]
[1763992989986,7.0373918,2808.3,2807.2,0.5836]
[1763992990156,0.229,2808.2,2807.4,0.1]
[1763992990586,6.8325918,2808.7,2807.4,0.1]
[1763992990587,0.1833,2808.7,2808.1,0.5846]
[1763992990739,1.18209411,2809.2,2808.2,0.4669]
[1763992990945,0.4565,2809.2,2808.5,0.1]
[1763992991453,0.231,2809.4,2808.5,0.4669]
[1763992991854,0.231,2809.4,2808.9,0.1]
[1763992992057,0.002,2809.4,2808.9,0.1]
[1763992992256,0.002,2809.4,2808.9,0.5669]
[1763992992871,0.002,2809.4,2809.3,0.1162]
[1763992993072,0.002,2809.4,2809.3,0.5831]
[1763992993271,0.002,2809.4,2809.0,0.1162]
[1763992994578,0.002,2809.4,2808.6,0.1162]
[1763992994579,0.4862,2809.1,2808.6,0.1162]
[1763992994913,0.4585,2809.4,2808.6,0.1162]
[1763992998198,0.4585,2809.4,2808.3,0.1]
[1763992998634,0.4585,2809.4,2808.4,0.1]
[1763992999092,0.4585,2809.4,2808.5,0.1]
[1763992999908,0.4585,2809.4,2808.5,0.4669]
[1763993000214,0.002,2809.4,2808.7,0.1]
[1763993000627,0.002,2809.4,2808.5,0.4669]
[1763993000628,0.002,2809.4,2808.6,0.1]
[1763993002534,0.002,2809.4,2808.4,0.001]
[1763993002535,0.002,2809.4,2808.7,0.4669]
[1763993002736,0.002,2809.4,2809.3,0.4669]
[1763993003237,0.0012,2809.4,2809.3,0.4669]
[1763993005729,0.0012,2809.4,2809.3,0.9338]
[1763993005929,0.0012,2809.4,2809.3,1.0338]
[1763993006700,0.0012,2809.4,2809.3,0.9338]
[1763993007136,0.0012,2809.4,2808.8,0.4669]
[1763993007438,0.0012,2809.4,2808.9,0.1]
[1763993008029,0.0012,2809.4,2808.9,0.5669]
[1763993008228,0.0012,2809.4,2809.0,0.1]
[1763993008606,0.0012,2809.4,2808.9,0.5669]
[1763993008802,0.0012,2809.4,2809.1,0.1]
[1763993009007,0.0012,2809.4,2809.3,0.4669]
[1763993009743,0.0012,2809.4,2809.3,0.9338]
[1763993010142,0.0012,2809.4,2809.3,4.99890959]
[1763993010338,0.0012,2809.4,2809.3,5.85478185]
[1763993010949,0.0012,2809.4,2809.3,2.52317626]
[1763993011478,0.0012,2809.4,2809.3,6.08278185]
[1763993013078,0.0012,2809.4,2809.3,6.80837596]
[1763993013282,0.002,2809.7,2809.6,0.505504]
[1763993013577,0.002,2809.7,2809.6,1.439304]
[1763993013774,0.002,2809.7,2809.6,1.65935316]
[1763993014356,0.002,2809.7,2809.6,1.88735316]
[1763993015341,0.002,2809.7,2809.6,6.20776503]
[1763993015663,0.002,2809.7,2809.6,5.44657867]
[1763993016476,0.002,2811.2,2810.0,1.13109811]
[1763993016681,0.002,2811.2,2811.0,0.1]
[1763993016876,0.002,2811.2,2810.6,0.228]
[1763993017062,0.002,2811.2,2810.7,0.4669]
[1763993017263,0.002,2811.2,2811.0,0.1]
[1763993017703,0.002,2811.2,2811.1,0.1]
[1763993017905,0.002,2811.2,2811.1,0.6836]
[1763993018106,0.002,2811.2,2811.1,1.1505]
[1763993020305,0.002,2811.2,2810.6,0.1167]
[1763993020504,0.002,2811.2,2811.0,0.1]
[1763993020809,0.002,2811.2,2811.1,0.5669]
[1763993021266,0.002,2811.2,2811.1,1.0338]
[1763993022305,0.002,2811.2,2811.1,0.5669]
[1763993023073,0.002,2811.2,2811.1,1.339304]
[1763993023411,0.002,2811.2,2811.1,1.439304]
[1763993024302,0.002,2811.2,2811.1,4.99663031]
[1763993024504,0.002,2811.2,2811.1,5.8748379]
[1763993024903,0.002,2811.2,2811.1,13.21863027]
[1763993024904,0.0005,2811.2,2811.1,13.21863027]
[1763993025114,0.0005,2811.2,2811.1,10.42731101]
[1763993025828,0.002,2811.5,2811.4,18.771439]
[1763993026031,0.002,2811.8,2811.5,1.13109811]
[1763993026246,0.002,2811.8,2811.7,0.972404]
[1763993026394,0.002,2811.8,2811.7,1.200404]
[1763993026595,0.002,2811.8,2811.7,5.2238712]
[1763993026796,0.002,2811.8,2811.7,5.94946531]
[1763993026997,0.0012,2811.8,2811.7,8.20383431]
[1763993027212,0.0012,2811.8,2811.7,7.12551753]
[1763993027593,0.0012,2811.8,2811.7,10.04551753]
[1763993028208,0.0012,2811.8,2811.7,10.23678453]
[1763993028411,0.6495,2813.8,2811.8,0.72559411]
[1763993028609,0.6495,2813.8,2813.1,0.1]
[1763993028802,0.4507,2813.7,2813.1,0.328]
[1763993029197,0.4507,2813.7,2813.1,0.1]
[1763993029408,0.4507,2813.7,2813.1,0.328]
[1763993029600,0.4984,2813.2,2812.4,0.117]
[1763993029925,0.4507,2813.7,2812.9,0.1]
[1763993030123,0.4834,2813.6,2812.9,0.1]
[1763993031228,0.4984,2813.0,2812.4,0.1]
[1763993031397,0.6808,2812.9,2812.4,0.1]
[1763993031596,0.4834,2813.5,2812.5,0.405504]
[1763993031797,0.1988,2813.8,2812.4,0.6949]
[1763993031798,0.4834,2813.7,2813.2,0.1]
[1763993032224,0.4984,2813.3,2812.6,0.1]
[1763993032424,0.3069,2812.9,2812.3,0.1]
[1763993032865,0.3069,2812.9,2812.4,0.1]
[1763993033039,0.1988,2813.8,2812.6,0.1]
[1763993033363,0.4834,2813.7,2812.6,0.1]
[1763993033535,0.4834,2813.7,2812.2,0.633504]
[1763993033746,0.4834,2813.7,2812.6,0.1]
[1763993034275,0.4834,2813.7,2812.7,0.1]
[1763993034880,0.6958,2812.8,2812.6,0.1]
[1763993035080,0.6958,2812.8,2812.4,0.1]
[1763993035260,0.4834,2812.7,2812.4,0.1]
[1763993035585,0.6958,2812.8,2812.4,0.1]
[1763993035748,0.1974,2812.8,2812.4,0.1]
[1763993036086,7.87334666,2813.8,2813.0,0.1]
[1763993036087,0.4834,2813.6,2813.0,0.1]
[1763993036489,0.4984,2813.1,2813.0,0.1]
[1763993036684,0.4984,2813.1,2812.5,0.228]
[1763993036887,0.9818,2813.1,2812.5,0.228]
[1763993037096,0.9818,2813.1,2812.6,0.1]
[1763993037564,0.4834,2813.0,2812.6,0.1]
[1763993037886,0.4834,2813.0,2812.7,0.1]
[1763993038083,0.1974,2812.9,2812.6,0.1]
[1763993038290,0.1474,2812.9,2812.6,0.1]
[1763993038660,0.1474,2812.9,2812.7,0.1]
[1763993038863,0.1474,2812.9,2812.6,0.1]
[1763993039471,0.1474,2812.9,2812.1,0.117]
[1763993039472,0.4984,2812.7,2812.1,0.117]
[1763993039794,0.4984,2812.7,2812.2,0.1]
[1763993040022,0.4834,2812.6,2812.2,0.1]
[1763993040563,0.4834,2812.6,2811.8,0.633504]
[1763993040564,0.4834,2812.6,2812.3,0.1]
[1763993040786,0.1474,2812.9,2812.5,0.1]
[1763993040990,0.1474,2812.9,2811.7,0.1]
[1763993040991,0.4984,2812.6,2811.7,0.1]
[1763993041188,0.4984,2812.6,2810.9,0.1988]
[1763993041360,0.1474,2812.9,2811.2,0.1]
[1763993041361,0.5043,2811.6,2811.2,0.1]
[1763993041688,0.4834,2812.5,2811.3,0.405504]
[1763993041888,0.4834,2812.5,2811.9,0.1]
[1763993042195,0.4834,2812.5,2811.5,0.4987]
[1763993042567,0.4834,2812.5,2811.6,0.1]
[1763993042968,0.4834,2812.5,2811.7,0.1]
[1763993043172,0.4834,2812.5,2811.8,0.1]
[1763993044290,0.6958,2811.9,2811.6,0.1]
[1763993044809,0.6958,2811.9,2811.7,0.1]
[1763993045198,0.6958,2811.9,2811.2,0.1]
[1763993045199,0.9818,2811.8,2811.2,0.1]
[1763993045390,0.3057,2811.5,2811.3,0.1]
[1763993045992,0.3057,2811.5,2811.0,0.405504]
[1763993046219,0.3057,2811.5,2811.2,0.1]
[1763993046510,0.4834,2811.7,2811.2,0.1]
[1763993046813,0.4984,2811.3,2810.8,0.228]
[1763993046981,0.4834,2811.7,2811.3,0.1]
[1763993047181,0.4834,2811.7,2811.4,0.1]
[1763993048189,0.3834,2811.7,2811.4,0.1]
[1763993048390,0.1974,2811.9,2811.4,0.1]
[1763993049780,0.4984,2811.5,2811.0,0.328]
[1763993049980,0.4984,2811.5,2811.1,0.1]
[1763993050216,0.9818,2811.5,2810.5,0.471]
[1763993050480,0.9818,2811.5,2810.9,0.1]
[1763993050710,0.4834,2811.8,2810.6,4.37361851]
[1763993050911,0.4834,2811.8,2811.4,0.1]
[1763993051108,0.76031398,2812.3,2811.0,3.96295686]
[1763993051109,0.1974,2812.2,2811.0,3.96295686]
[1763993051318,0.68,2812.2,2811.1,0.1932]
[1763993051526,0.68,2812.2,2811.4,0.1]
[1763993051728,1.24349167,2812.1,2811.4,0.1]
[1763993052214,0.4834,2812.0,2811.5,0.1]
[1763993052424,0.4834,2812.0,2811.6,0.1]
[1763993052713,0.4834,2812.0,2811.1,0.8922]
[1763993052714,0.4834,2812.0,2811.5,0.1]
[1763993053121,0.76009167,2812.1,2811.5,0.1]
[1763993053327,0.76009167,2812.1,2811.2,0.471]
[1763993053541,0.4834,2812.1,2811.7,0.1]
[1763993054141,0.4834,2812.1,2811.1,0.4212]
[1763993054142,0.4984,2811.8,2811.4,0.1]
[1763993054534,0.1077,2811.5,2811.2,0.1]
[1763993054726,0.1966,2812.2,2811.0,0.405504]
[1763993054727,0.75991321,2812.1,2811.1,0.1932]
[1763993054927,0.4834,2812.1,2811.4,0.1]
[1763993055127,0.1966,2812.2,2811.5,0.1]
[1763993055331,0.4834,2812.1,2811.5,0.1]
[1763993055948,0.4834,2812.1,2811.6,0.1]
[1763993056508,0.4984,2811.7,2811.5,0.1]
[1763993056841,0.4834,2812.1,2811.2,0.471]
[1763993057045,0.4834,2812.1,2811.8,0.1]
[1763993057046,0.002,2812.1,2811.8,0.1]
[1763993057229,0.002,2812.1,2811.6,0.4987]
[1763993057230,0.002,2812.1,2811.9,0.1]
[1763993058342,0.4984,2812.0,2811.4,0.471]
[1763993058506,0.4984,2812.0,2811.6,0.1]
[1763993058706,0.4984,2812.0,2811.5,0.228]
[1763993058922,0.4984,2812.0,2811.8,0.1]
[1763993059575,0.4984,2812.0,2811.5,0.699]
[1763993059576,0.002,2812.1,2811.9,0.952]
[1763993059871,0.002,2812.1,2812.0,0.5566]
[1763993061065,0.002,2812.1,2812.0,0.1]
[1763993061427,0.4762,2812.1,2812.0,0.1]
[1763993061626,0.002,2812.1,2812.0,0.1]
[1763993062075,0.002,2812.1,2812.0,1.052]
[1763993062448,0.002,2812.1,2812.0,1.28]
[1763993063471,0.002,2812.1,2812.0,0.7846]
[1763993065207,0.002,2812.1,2812.0,0.328]
[1763993065492,0.4762,2812.1,2812.0,0.1]
[1763993065665,0.002,2812.1,2812.0,0.1]
[1763993065864,0.9409,2812.1,2811.2,0.1]
[1763993066166,0.3459,2812.0,2811.2,0.1]
[1763993066359,0.8106,2812.0,2811.1,0.1864]
[1763993066555,0.8106,2812.0,2811.5,0.1]
[1763993066762,0.4647,2811.9,2811.5,0.1]
[1763993068478,0.4742,2811.6,2811.5,0.1]
[1763993068990,0.9389,2811.6,2811.2,0.1]
[1763993069350,0.4647,2811.9,2811.3,0.1]
[1763993069549,0.4647,2811.9,2811.5,0.1]
[1763993069789,0.1863,2812.0,2811.1,0.71737326]
[1763993069965,0.1863,2812.0,2811.6,0.1]
[1763993070474,0.651,2812.0,2811.6,0.1]
[1763993071149,0.4647,2811.9,2811.6,0.1]
[1763993072052,0.1863,2812.0,2811.6,0.1]
[1763993072247,0.1863,2812.0,2811.1,0.03557326]
[1763993072248,0.4742,2811.7,2811.1,0.03557326]
[1763993072455,0.4711,2811.2,2811.0,0.001]
[1763993073182,0.1628,2811.1,2811.0,0.001]
[1763993074300,0.76280316,2811.9,2811.0,0.001]
[1763993074501,0.4639,2811.6,2811.0,0.4576]
[1763993074687,0.4639,2811.6,2811.3,0.1]
[1763993075104,0.1863,2812.0,2811.3,0.1]
[1763993075901,0.1863,2812.0,2811.4,0.1]
[1763993076101,0.1863,2812.0,2811.5,0.1]
[1763993076812,0.651,2812.0,2811.5,0.1]
[1763993077599,0.651,2812.0,2811.1,0.6818]
[1763993077600,0.1863,2812.0,2811.6,0.03556693]
[1763993077904,0.002,2812.1,2811.7,0.1]
[1763993078873,0.002,2812.1,2811.5,0.228]
[1763993079090,0.002,2812.1,2811.8,0.1]
[1763993079295,0.002,2812.1,2811.7,0.1]
[1763993079507,0.002,2812.1,2812.0,0.5566]
[1763993079919,0.002,2812.1,2812.0,1.052]
[1763993081919,0.002,2812.1,2812.0,1.28]
[1763993082085,0.002,2812.1,2812.0,5.72532193]
[1763993082281,0.002,2812.1,2812.0,1.94113417]
[1763993082485,0.002,2812.1,2812.0,2.16913417]
[1763993082725,0.002,2812.1,2812.0,2.66672828]
[1763993082925,0.002,2812.1,2812.0,5.96728587]
[1763993084089,0.002,2812.1,2812.0,5.24169176]
[1763993085719,0.002,2812.1,2812.0,13.40027474]
[1763993085886,0.002,2812.1,2812.0,5.73928587]
[1763993086083,0.002,2812.1,2812.0,5.96728587]
[1763993086289,0.002,2812.1,2812.0,6.91964529]
[1763993087926,0.002,2812.1,2812.0,12.08317416]
[1763993088127,0.002,2812.1,2812.0,12.04761229]
[1763993090103,0.002,2812.1,2812.0,19.24479531]
[1763993090432,0.002,2812.1,2812.0,6.91964529]
[1763993090616,0.002,2812.1,2812.0,9.13544416]
[1763993090822,0.002,2812.1,2812.0,9.09988229]
[1763993091219,0.002,2812.1,2812.0,13.98597229]
[1763993091420,0.002,2812.1,2812.0,9.66912229]
[1763993091934,0.002,2812.1,2812.0,16.86630531]
[1763993092312,0.002,2812.1,2812.0,41.16160031]
[1763993093314,0.002,2812.1,2812.0,43.88240031]
[1763993094537,0.002,2812.1,2812.0,44.11682831]
[1763993095115,0.002,2812.2,2812.1,25.43838911]
[1763993095430,0.002,2812.2,2812.1,28.89688558]
[1763993095638,0.002,2812.2,2812.1,26.81032358]
[1763993096038,0.002,2812.4,2812.1,26.71032358]
[1763993096342,0.002,2812.4,2812.3,5.28620652]
[1763993096646,0.002,2812.4,2812.3,24.90657852]
[1763993096821,0.002,2812.4,2812.3,28.12149851]
[1763993097337,0.002,2812.4,2812.3,8.97362651]
[1763993097638,0.002,2812.4,2812.3,30.66254751]
[1763993097938,0.002,2812.7,2812.3,37.77416433]
[1763993098139,0.002,2812.7,2812.6,22.06779713]
[1763993098311,0.0012,2812.7,2812.6,24.42074194]
[1763993098510,0.0012,2812.7,2812.6,28.44867108]
[1763993099522,0.0012,2812.7,2812.6,28.58410308]
[1763993099721,0.0012,2812.7,2812.6,28.34215608]
[1763993100042,0.0012,2812.7,2812.6,24.45670908]
[1763993100247,0.002,2813.6,2813.0,0.405504]
[1763993100410,0.002,2813.6,2813.5,1.004804]
[1763993100612,0.9478,2813.6,2813.5,0.733504]
[1763993100807,0.9478,2813.6,2813.5,0.505504]
[1763993101011,0.9478,2813.6,2812.9,0.1]
[1763993101312,0.233,2813.1,2812.9,0.1]
[1763993101631,0.4913,2813.0,2812.9,0.1]
[1763993101814,0.4913,2813.0,2812.9,0.328]
[1763993102009,0.9432,2813.0,2812.9,0.1]
[1763993102446,0.9432,2813.0,2811.8,0.72559411]
[1763993102637,0.002,2813.6,2812.6,0.1]
[1763993102638,0.8701,2812.9,2812.6,0.1]
[1763993103048,0.4887,2812.7,2812.6,0.1]
[1763993103829,0.4887,2812.7,2812.6,0.505504]
[1763993104238,0.4887,2812.7,2812.6,0.733504]
[1763993105656,0.9406,2812.7,2812.6,0.733504]
[1763993106158,0.4887,2812.7,2812.6,0.733504]
[1763993106359,0.9406,2812.7,2812.6,0.228]
[1763993107367,0.9406,2812.7,2812.6,0.328]
[1763993107836,0.9406,2812.7,2812.6,0.1]
[1763993108038,0.9406,2812.7,2812.6,0.328]
[1763993108466,0.9406,2812.7,2812.6,0.1]
[1763993109262,0.9406,2812.7,2812.5,0.228]
[1763993109469,0.4519,2812.7,2812.6,0.1]
[1763993109968,0.9458,2812.7,2812.6,0.1]
[1763993111127,0.4939,2812.7,2812.6,0.1]
[1763993112078,0.1826,2812.9,2812.6,0.1]
[1763993112239,0.1826,2812.9,2812.8,0.1]
[1763993112565,0.1826,2812.9,2812.8,0.505504]
[1763993112767,0.4519,2813.3,2813.1,0.1]
[1763993113137,0.4939,2813.2,2813.1,0.1]
[1763993114542,0.4939,2813.2,2813.1,0.505504]
[1763993114779,0.9458,2813.2,2812.5,0.001]
[1763993114957,0.6765,2812.6,2812.5,0.101]
[1763993115207,0.6765,2812.6,2812.5,0.328]
[1763993115441,0.6765,2812.6,2812.5,0.101]
[1763993115442,0.4939,2812.6,2812.5,0.101]
[1763993115643,0.9458,2812.6,2812.5,0.101]
[1763993116184,0.9458,2812.6,2812.5,0.328]
[1763993116342,0.9458,2812.6,2812.5,0.101]
[1763993120602,0.9808,2812.6,2812.5,0.101]
[1763993120746,0.9808,2812.6,2812.5,0.328]
[1763993121049,0.9808,2812.6,2812.5,0.101]
[1763993121252,0.9808,2812.6,2812.5,0.001]
[1763993122065,0.98,2812.6,2812.5,0.101]
[1763993124088,0.4931,2812.6,2812.5,0.101]
[1763993124287,0.98,2812.6,2812.5,0.101]
[1763993125152,0.98,2812.6,2812.5,0.001]
[1763993127302,0.1983,2812.4,2812.0,0.001]
[1763993127502,0.4844,2812.1,2812.0,0.001]
[1763993127871,0.9713,2812.1,2812.0,0.001]
[1763993134181,0.9713,2812.1,2811.7,0.001]
[1763993134383,0.3901,2811.8,2811.7,0.001]
[1763993134778,0.877,2811.8,2811.7,0.001]
[1763993136599,0.3901,2811.8,2811.7,0.001]
[1763993136985,0.877,2811.8,2811.7,0.001]
[1763993139390,0.2061,2811.8,2811.7,0.001]
[1763993139598,0.184,2812.2,2811.7,0.4555]
[1763993139791,0.184,2812.2,2811.9,0.1]
[1763993139992,0.4844,2811.8,2811.7,0.101]
[1763993140220,0.4869,2812.1,2811.7,0.101]
[1763993140392,0.4869,2812.1,2811.7,0.5555]
[1763993140595,0.184,2812.2,2811.8,0.1]
[1763993140838,0.184,2812.2,2811.9,0.1]
[1763993141017,0.002,2812.6,2812.1,0.4545]
[1763993141223,0.002,2812.6,2812.2,0.1]
[1763993141402,0.4889,2812.6,2812.2,0.1]
[1763993142430,0.4844,2812.3,2812.2,0.1]
[1763993143846,0.4844,2812.3,2812.1,0.1]
[1763993144650,0.2091,2812.2,2811.7,0.506504]
[1763993144949,0.2091,2812.2,2811.8,0.1]
[1763993145152,0.2091,2812.2,2811.9,0.1]
[1763993145438,0.4869,2812.4,2811.7,0.869204]
[1763993145839,0.4861,2812.4,2811.9,0.1]
[1763993148109,0.002,2812.6,2812.3,0.5952]
[1763993149554,0.002,2812.6,2812.5,0.5952]
[1763993150853,0.002,2812.6,2812.5,1.454104]
[1763993151016,0.002,2812.6,2812.2,0.1694]
[1763993151017,0.4907,2812.6,2812.2,0.1694]
[1763993151222,0.002,2812.6,2812.5,0.4593]
[1763993151553,0.002,2812.6,2812.5,0.5593]
[1763993152652,0.002,2812.6,2812.2,0.1694]
[1763993152653,0.4907,2812.6,2812.2,0.1694]
[1763993152850,0.216,2812.4,2812.2,0.1]
[1763993153348,0.486,2812.3,2812.2,0.1]
[1763993153556,0.486,2812.3,2812.1,0.1]
[1763993153729,0.486,2812.3,2812.0,0.227]
[1763993153931,0.486,2812.3,2812.1,0.505504]
[1763993154146,0.4774,2812.6,2812.2,0.1]
[1763993154518,0.002,2812.6,2812.4,0.1]
[1763993160327,0.002,2812.6,2812.5,0.4593]
[1763993160483,0.002,2812.6,2812.5,0.5593]
[1763993161977,0.002,2812.6,2812.5,1.645204]
[1763993162468,0.002,2812.6,2812.5,5.20075955]
[1763993162677,0.002,2812.6,2812.5,6.07640195]
[1763993162877,0.002,2812.6,2812.5,6.1119575]
[1763993163332,0.002,2812.6,2812.5,6.83755161]
[1763993163532,0.002,2812.6,2812.5,6.80199606]
[1763993163734,0.002,2812.6,2812.5,6.83755161]
[1763993164444,0.002,2812.6,2812.5,15.03238161]
[1763993164769,0.002,2812.6,2812.5,11.58954006]
[1763993165336,0.002,2812.6,2812.5,6.80199606]
[1763993165539,0.002,2812.6,2812.5,13.62212206]
[1763993165739,0.002,2812.6,2812.5,12.98962206]
[1763993166679,0.002,2812.6,2812.5,14.00212206]
[1763993167592,0.002,2812.6,2812.5,21.82408206]
[1763993168702,0.002,2812.6,2812.5,21.72895706]
[1763993169496,0.0012,2812.6,2812.5,21.72895706]
[1763993169796,0.0012,2812.6,2812.5,14.47551372]
[1763993169963,0.0012,2812.6,2812.5,6.57499606]
[1763993170164,0.0012,2812.6,2812.5,6.80199606]
[1763993170489,0.0012,2812.6,2812.5,8.80599706]
[1763993170790,0.0012,2812.6,2812.5,12.45819406]
[1763993171000,0.0012,2812.6,2812.5,12.23119406]
[1763993171302,0.0012,2812.6,2812.5,11.90573206]
[1763993171610,0.0012,2812.6,2812.5,13.27562406]
[1763993172403,0.0012,2812.6,2812.5,12.29693206]
[1763993172694,0.0012,2812.6,2812.5,19.36812406]
[1763993173086,0.0012,2812.6,2812.5,27.04164172]
[1763993173667,0.0012,2812.6,2812.5,29.53677172]
[1763993173880,0.0012,2812.6,2812.5,28.39056172]
[1763993174396,0.0012,2812.6,2812.5,27.27161372]
[1763993174603,0.0012,2812.6,2812.5,26.78423296]
[1763993174899,0.0012,2812.6,2812.5,27.35136777]
[1763993175298,0.0012,2812.6,2812.5,31.10736777]
[1763993175511,0.002,2813.0,2812.9,25.35777901]
[1763993175737,0.002,2813.0,2812.9,19.49589285]
[1763993175938,0.002,2813.0,2812.9,41.66006985]
[1763993176097,0.002,2813.0,2812.9,41.80248727]
[1763993176821,0.002,2813.0,2812.9,43.71124227]
[1763993177216,0.002,2813.0,2812.9,34.23681727]
[1763993177422,0.002,2813.0,2812.9,32.35010727]
[1763993177882,0.002,2813.0,2812.9,36.00799127]
[1763993178087,0.002,2813.0,2812.9,33.24151727]
[1763993178615,0.002,2813.0,2812.9,33.01451727]
[1763993178820,0.002,2813.0,2812.9,36.98211527]
[1763993178990,0.002,2813.0,2812.9,30.45091727]
[1763993180041,0.002,2813.0,2812.9,35.08940827]
[1763993180820,0.002,2813.0,2812.9,20.09171027]
[1763993181022,0.002,2813.0,2812.9,31.24123727]
[1763993181883,0.002,2813.0,2812.9,39.35027827]
[1763993182520,0.002,2813.0,2812.9,43.20483747]
[1763993182725,0.002,2813.0,2812.9,36.01870057]
[1763993182947,0.002,2813.0,2812.9,39.43842957]
[1763993183152,0.002,2813.0,2812.9,37.14750257]
[1763993183856,0.002,2813.0,2812.9,11.67962143]
[1763993184038,0.9433,2813.0,2812.9,0.1]
[1763993184224,0.9433,2813.0,2812.9,0.327]
[1763993184547,0.465,2813.0,2812.9,4.60764405]
[1763993184751,0.465,2813.0,2812.9,3.88204994]
[1763993184915,0.9433,2813.0,2812.9,0.1]
[1763993185116,0.9433,2813.0,2812.4,0.001]
[1763993185433,0.6602,2812.9,2812.5,0.227]
[1763993185755,0.6602,2812.9,2812.7,0.1]
[1763993185943,0.4783,2812.8,2812.7,0.1]
[1763993186141,0.9413,2812.8,2812.7,0.1]
[1763993186318,0.9413,2812.8,2812.6,0.327]
[1763993186517,0.4783,2812.7,2812.6,0.1]
[1763993186713,0.9413,2812.7,2812.6,0.1]
[1763993186954,0.9413,2812.7,2812.4,0.001]
[1763993187260,0.2392,2812.5,2812.4,0.001]
[1763993187551,0.7175,2812.5,2812.4,0.001]
[1763993187928,0.7175,2812.5,2812.4,0.101]
[1763993188237,0.4783,2812.8,2812.4,0.506504]
[1763993188436,0.4783,2812.8,2812.7,0.1]
[1763993188619,0.4783,2812.8,2812.7,0.732504]
[1763993188816,0.9413,2812.8,2812.7,0.732504]
[1763993189442,0.463,2812.8,2812.7,0.732504]
[1763993189950,0.9413,2812.8,2812.7,0.732504]
[1763993191168,0.002,2813.0,2812.8,0.405504]
[1763993191338,0.002,2813.0,2812.9,0.505504]
[1763993191841,0.465,2813.0,2812.9,0.505504]
[1763993192365,0.002,2813.0,2812.9,4.06055394]
[1763993192741,0.002,2813.0,2812.9,0.505504]
[1763993193148,0.002,2813.0,2812.9,4.06055394]
[1763993193469,0.0012,2813.0,2812.9,4.84483045]
[1763993194069,0.0012,2813.0,2812.9,1.78278051]
[1763993194271,0.0012,2813.0,2812.9,1.28978051]
[1763993194850,0.0012,2813.0,2812.9,4.84483045]
[1763993195564,0.0012,2813.0,2812.9,5.33783045]
[1763993196062,0.0012,2813.0,2812.9,5.37338094]
[1763993196462,0.4642,2813.0,2812.9,4.84483045]
[1763993196976,0.4642,2813.0,2812.9,1.28978051]
[1763993197161,0.9425,2813.0,2812.8,0.227]
[1763993197355,0.1935,2812.9,2812.8,0.327]
[1763993197556,1.1348,2812.9,2812.8,0.327]
[1763993197875,1.1348,2812.9,2812.8,0.1]
[1763993198077,0.6565,2812.9,2812.8,0.327]
[1763993198291,1.1348,2812.9,2812.8,0.327]
[1763993199276,1.1348,2812.9,2812.7,0.1]
[1763993199483,0.1935,2812.9,2812.5,0.001]
[1763993199681,0.463,2812.6,2812.5,0.101]
[1763993200063,0.9413,2812.6,2812.5,0.101]
[1763993201593,0.463,2812.6,2812.5,0.506504]
[1763993201762,0.463,2812.6,2812.5,0.93563318]
[1763993202373,0.9413,2812.6,2812.5,0.506504]
[1763993203381,0.9413,2812.6,2812.5,0.001]
[1763993209089,0.9413,2812.6,2812.5,0.101]
[1763993211391,0.1935,2812.9,2812.8,0.1]
[1763993211693,0.19,2812.9,2812.7,0.227]
[1763993211890,0.19,2812.9,2812.8,0.1]
[1763993212372,0.6833,2812.9,2812.8,0.1]
[1763993212695,1.151,2812.9,2812.8,0.1]
[1763993214614,1.151,2812.9,2812.7,0.227]
[1763993214910,0.6803,2812.8,2812.7,0.227]
[1763993215216,0.6803,2812.8,2812.5,0.001]
[1763993215418,0.4905,2812.6,2812.5,0.001]
[1763993215916,0.9582,2812.6,2812.5,0.001]
[1763993217189,0.9574,2812.6,2812.5,0.001]
[1763993217386,0.4897,2812.6,2812.5,0.001]
[1763993217596,0.4897,2812.6,2812.5,0.101]
[1763993217799,0.4933,2812.6,2812.5,0.001]
[1763993218189,0.961,2812.6,2812.5,0.001]
[1763993220513,0.961,2812.6,2812.3,0.001]
[1763993220838,0.4892,2812.0,2811.5,0.001]
[1763993221002,0.4882,2811.6,2810.3,0.1]
[1763993221199,0.72559411,2811.2,2810.3,0.14258699]
[1763993221402,0.72559411,2811.2,2809.3,0.1163]
[1763993221403,0.3922,2810.4,2809.3,0.1163]
[1763993221703,0.3922,2810.4,2809.2,0.4947]
[1763993221704,0.4933,2809.8,2809.2,0.4947]
[1763993221917,0.4933,2809.8,2809.4,0.1]
[1763993222128,0.4933,2809.8,2809.2,0.4947]
[1763993222129,0.19,2810.6,2809.5,0.03559352]
[1763993222444,0.4677,2810.5,2809.9,0.1]